bitfinex-derivatives/quotes_BNBF0:USTF0_20250413
["timestamp","ask_amount","ask_price","bid_price","bid_amount"]
[1744582602066,0.89977166,584.13,583.25,0.474]
[1744582602265,0.89977166,584.12,583.25,0.474]
[1744582602461,0.58585722,584.11,583.25,0.474]
[1744582602761,0.58585722,584.1,583.25,0.474]
[1744582602965,0.58585722,584.09,583.25,0.474]
[1744582603162,0.58585722,584.08,583.25,0.474]
[1744582603360,0.58585722,584.07,583.25,0.474]
[1744582603561,0.58592196,584.06,583.25,0.474]
[1744582603863,0.58592196,584.05,583.25,0.474]
[1744582604161,0.34228406,584.31,583.25,0.474]
[1744582604367,0.8998515,584.3,583.25,0.474]
[1744582604567,0.65622523,584.29,583.25,0.474]
[1744582604768,0.65623109,584.28,583.25,0.474]
[1744582604968,1.24213473,584.27,583.25,0.474]
[1744582605267,0.89982724,584.26,583.25,0.474]
[1744582605471,0.89982724,584.25,583.25,0.474]
[1744582605662,0.89982724,584.24,583.25,0.474]
[1744582605866,0.89982724,584.23,583.25,0.474]
[1744582606163,0.89982724,584.22,583.25,0.474]
[1744582606364,0.89982724,584.21,583.25,0.474]
[1744582606569,0.89982724,584.2,583.25,0.474]
[1744582606770,0.89982724,584.19,583.26,0.615]
[1744582606962,0.89982724,584.18,583.26,0.615]
[1744582607161,0.89982724,584.17,583.26,0.615]
[1744582607364,0.89982724,584.16,583.26,0.615]
[1744582607565,0.89982724,584.15,583.26,0.615]
[1744582607769,0.89982724,584.14,583.26,0.615]
[1744582607965,0.89982724,584.13,583.26,0.615]
[1744582608269,0.89982724,584.12,583.26,0.615]
[1744582608470,0.89982724,584.11,583.26,0.615]
[1744582608672,0.58589778,584.1,583.26,0.615]
[1744582608866,0.89982724,584.09,583.26,0.615]
[1744582609065,0.89982724,584.08,583.27,0.31491268]
[1744582609267,0.89982724,584.07,583.27,0.31491268]
[1744582609468,0.34230749,584.27,583.26,0.615]
[1744582609469,0.89982724,584.06,583.26,0.615]
[1744582609669,0.89982724,584.05,583.26,0.615]
[1744582609868,0.89982724,584.04,583.26,0.615]
[1744582610065,0.89982724,584.03,583.26,0.615]
[1744582610264,0.89982724,584.02,583.26,0.615]
[1744582610569,0.89982724,584.01,583.26,0.615]
[1744582610765,0.58589778,584.0,583.26,0.615]
[1744582610968,0.58589778,583.99,583.26,0.615]
[1744582611170,0.58589778,583.98,583.27,0.31491211]
[1744582611471,0.58589778,583.97,583.27,0.31491211]
[1744582611771,0.58589778,583.96,583.27,0.31491211]
[1744582611966,0.58589778,583.95,583.26,0.615]
[1744582612165,0.58589778,583.94,583.26,0.615]
[1744582612365,0.58589778,583.93,583.26,0.615]
[1744582612569,0.58589778,583.92,583.26,0.615]
[1744582612869,0.58589778,583.91,583.26,0.615]
[1744582613171,0.58589778,583.9,583.27,0.438]
[1744582613370,0.58589778,583.89,583.27,0.438]
[1744582613569,0.58589778,583.88,583.27,0.438]
[1744582613769,0.58589778,583.87,583.27,0.438]
[1744582613963,0.34230749,584.27,583.27,0.438]
[1744582613964,0.58589778,583.86,583.27,0.438]
[1744582614170,0.58589778,583.85,583.27,0.438]
[1744582614371,0.58589778,583.84,583.27,0.438]
[1744582614572,0.58589778,583.83,583.27,0.438]
[1744582614774,0.58589778,583.82,583.27,0.438]
[1744582614973,0.58589778,583.81,583.27,0.438]
[1744582615273,0.58589778,583.8,583.27,0.438]
[1744582615472,0.58609657,583.79,583.27,0.438]
[1744582615674,0.58609657,583.78,583.27,0.438]
[1744582615869,0.58609657,583.77,583.27,0.438]
[1744582616073,0.58609657,583.76,583.27,0.438]
[1744582616273,0.58609657,583.75,583.27,0.438]
[1744582616473,0.58609657,583.74,583.27,0.438]
[1744582616770,0.58609657,583.73,583.27,0.438]
[1744582616978,0.58609657,583.72,583.27,0.438]
[1744582617175,0.58609657,583.71,583.27,0.438]
[1744582617376,0.58609657,583.7,583.27,0.438]
[1744582617572,0.58609657,583.69,583.27,0.438]
[1744582617775,0.58609657,583.68,583.27,0.438]
[1744582617974,0.58609657,583.67,583.27,0.438]
[1744582618175,0.58609657,583.66,583.27,0.999]
[1744582618373,0.58609657,583.65,583.27,0.999]
[1744582618572,0.58609657,583.64,583.27,0.999]
[1744582618778,0.58609657,583.63,583.27,0.999]
[1744582618981,0.58609657,583.62,583.27,0.999]
[1744582619181,0.216,583.7,583.27,0.999]
[1744582619376,0.58620083,583.69,583.27,0.999]
[1744582619580,0.58620083,583.68,583.27,0.999]
[1744582619781,0.58620083,583.67,583.27,0.999]
[1744582619976,0.58620083,583.66,583.27,0.999]
[1744582620278,0.58620083,583.65,583.27,0.999]
[1744582620478,0.58620083,583.64,583.27,0.999]
[1744582620674,0.216,583.7,583.27,0.999]
[1744582620876,0.58619328,583.69,583.27,0.999]
[1744582621079,0.58619328,583.68,583.27,0.999]
[1744582621281,0.216,583.7,583.27,0.999]
[1744582621482,0.58614814,583.69,583.27,0.999]
[1744582621685,0.216,583.7,583.27,0.999]
[1744582621880,0.58610353,583.69,583.28,0.314865]
[1744582622078,0.216,583.7,583.27,0.999]
[1744582622378,0.216,583.7,583.28,0.3148498]
[1744582624586,0.216,583.7,583.27,0.999]
[1744582626589,0.58583189,583.69,583.27,0.999]
[1744582626787,0.216,583.7,583.27,0.999]
[1744582626987,0.58583666,583.69,583.27,0.999]
[1744582627187,0.216,583.7,583.27,0.999]
[1744582627386,0.58583237,583.69,583.27,1.528]
[1744582627584,0.216,583.7,583.27,1.528]
[1744582627790,0.58581513,583.69,583.27,1.528]
[1744582628084,0.216,583.7,583.27,1.528]
[1744582628285,0.5858141,583.69,583.27,1.528]
[1744582628487,0.5858141,583.68,583.27,1.528]
[1744582628690,0.216,583.7,583.27,1.528]
[1744582628887,0.58581153,583.69,583.27,1.528]
[1744582629088,0.58581153,583.68,583.27,1.528]
[1744582629289,0.58581153,583.67,583.27,1.528]
[1744582629490,0.216,583.7,583.27,1.528]
[1744582629491,0.58581153,583.66,583.27,1.528]
[1744582629691,0.58581153,583.65,583.27,1.528]
[1744582629886,0.216,583.7,583.27,1.528]
[1744582630087,0.58587484,583.69,583.27,1.528]
[1744582630391,0.58587484,583.68,583.27,1.528]
[1744582630590,0.58587484,583.67,583.27,1.528]
[1744582630792,0.216,583.7,583.27,1.528]
[1744582630988,0.58596628,583.69,583.27,1.528]
[1744582631188,0.58596628,583.68,583.27,1.528]
[1744582631391,0.58606743,583.67,583.27,1.528]
[1744582631588,0.216,583.7,583.27,1.528]
[1744582631792,0.58606726,583.69,583.27,1.528]
[1744582631990,0.216,583.7,583.27,1.528]
[1744582631991,0.58606726,583.68,583.27,1.528]
[1744582632188,0.216,583.7,583.27,1.528]
[1744582632385,0.5860574,583.69,583.27,1.528]
[1744582632593,0.5860574,583.68,583.27,1.528]
[1744582632792,0.5860574,583.67,583.27,1.528]
[1744582632992,0.216,583.7,583.27,2.11]
[1744582633193,0.58620329,583.69,583.27,2.11]
[1744582633389,0.58620329,583.68,583.27,2.11]
[1744582633593,0.58633567,583.67,583.27,2.11]
[1744582633890,0.58633567,583.66,583.27,2.11]
[1744582634089,0.216,583.7,583.27,2.11]
[1744582634295,0.58633297,583.69,583.27,2.11]
[1744582634496,0.58633297,583.68,583.27,2.11]
[1744582634796,0.58633297,583.67,583.27,2.11]
[1744582634997,0.58633297,583.66,583.27,2.11]
[1744582635297,0.216,583.7,583.27,2.11]
[1744582635496,0.58644235,583.69,583.27,2.11]
[1744582635796,0.58644235,583.68,583.27,2.643]
[1744582635992,0.58644235,583.67,583.27,2.643]
[1744582636197,0.58657709,583.66,583.27,2.643]
[1744582636393,0.58657709,583.65,583.27,2.643]
[1744582636592,0.216,583.7,583.27,2.643]
[1744582636794,0.58662094,583.69,583.27,2.643]
[1744582636997,0.58662094,583.68,583.27,2.643]
[1744582637193,0.58662094,583.67,583.27,2.643]
[1744582637398,0.58662094,583.66,583.27,2.643]
[1744582637598,0.58662094,583.65,583.27,2.643]
[1744582637800,0.216,583.7,583.27,2.082]
[1744582638100,0.58665463,583.69,583.27,2.082]
[1744582638298,0.58665463,583.68,583.27,2.082]
[1744582638495,0.58665463,583.67,583.27,2.082]
[1744582638695,0.58665463,583.66,583.27,2.082]
[1744582638896,0.58665463,583.65,583.27,2.082]
[1744582639098,0.58665463,583.64,583.27,2.082]
[1744582639299,0.216,583.7,583.27,2.082]
[1744582639601,0.58672923,583.69,583.27,2.082]
[1744582639795,0.58672923,583.68,583.27,2.082]
[1744582639994,0.58672923,583.67,583.27,2.082]
[1744582640195,0.58672923,583.66,583.27,2.082]
[1744582640499,0.58672923,583.65,583.27,2.082]
[1744582640695,0.58672923,583.64,583.27,2.082]
[1744582641001,0.34230749,584.27,583.27,2.082]
[1744582641299,0.90066597,584.26,583.27,2.082]
[1744582641499,0.90066597,584.25,583.27,2.082]
[1744582641700,0.90066597,584.24,583.27,2.082]
[1744582641899,0.90066597,584.23,583.27,2.082]
[1744582642098,0.58677326,584.22,583.27,2.082]
[1744582642298,0.58677326,584.21,583.27,2.082]
[1744582642495,0.58677326,584.2,583.27,2.082]
[1744582642699,0.58677326,584.19,583.27,2.082]
[1744582642900,0.58677326,584.18,583.27,2.082]
[1744582643100,0.58677326,584.17,583.27,2.082]
[1744582643301,0.58677326,584.16,583.27,2.082]
[1744582643496,0.58677326,584.15,583.27,2.082]
[1744582643695,0.58677326,584.14,583.27,2.082]
[1744582643895,0.58677326,584.13,583.27,2.082]
[1744582644096,0.90070799,584.12,583.27,2.082]
[1744582644299,0.216,584.15,583.27,2.082]
[1744582644300,0.90070799,584.11,583.27,2.082]
[1744582644601,0.90070799,584.1,583.27,2.082]
[1744582644798,0.58677326,584.09,583.27,2.082]
[1744582644998,0.58677326,584.08,583.27,2.082]
[1744582645196,0.58677326,584.07,583.27,2.082]
[1744582645399,0.90070917,584.06,583.27,2.082]
[1744582645597,0.90070917,584.05,583.27,2.082]
[1744582645799,0.90070917,584.04,583.27,2.082]
[1744582646002,0.58677326,584.03,583.27,2.082]
[1744582646302,0.58677326,584.02,583.27,2.082]
[1744582646502,0.58677326,584.01,583.27,2.082]
[1744582646705,0.90124355,584.0,583.27,2.082]
[1744582646902,0.90124355,583.99,583.27,2.082]
[1744582647103,0.90124355,583.98,583.27,2.082]
[1744582647402,0.58726932,583.97,583.27,2.082]
[1744582647603,0.58726932,583.96,583.27,2.082]
[1744582647803,0.90125818,583.95,583.27,2.082]
[1744582648103,0.58726932,583.94,583.27,2.082]
[1744582648303,0.58726932,583.93,583.27,2.082]
[1744582648501,0.58726932,583.92,583.27,2.082]
[1744582648701,0.58726932,583.91,583.27,2.082]
[1744582648901,0.58726932,583.9,583.27,2.082]
[1744582649100,0.58726932,583.89,583.27,2.082]
[1744582649399,0.58726932,583.88,583.27,2.082]
[1744582649601,0.58726932,583.87,583.27,2.082]
[1744582649801,0.58726932,583.86,583.27,2.082]
[1744582650002,0.58726932,583.85,583.27,2.082]
[1744582650197,0.58726932,583.84,583.27,2.082]
[1744582650404,0.58726932,583.83,583.27,2.082]
[1744582650604,0.58726932,583.82,583.27,2.082]
[1744582650904,0.58726932,583.81,583.27,2.082]
[1744582651104,0.58726932,583.8,583.27,2.082]
[1744582651301,0.58726932,583.79,583.27,2.082]
[1744582651498,0.58726932,583.78,583.27,2.082]
[1744582651707,0.58726932,583.77,583.27,2.082]
[1744582652000,0.58726932,583.76,583.27,2.082]
[1744582652200,0.58726932,583.75,583.27,2.082]
[1744582652398,0.58726932,583.74,583.27,2.082]
[1744582652600,0.58726932,583.73,583.27,2.082]
[1744582652802,0.58726932,583.72,583.27,2.082]
[1744582653004,0.58726932,583.71,583.27,2.082]
[1744582653205,0.58726932,583.7,583.27,2.082]
[1744582653405,0.58726932,583.69,583.27,2.082]
[1744582653602,0.58726932,583.68,583.27,2.082]
[1744582653802,0.58726932,583.67,583.27,2.082]
[1744582654005,0.58726932,583.66,583.27,2.082]
[1744582654207,0.58726932,583.65,583.27,2.082]
[1744582654507,0.58726932,583.64,583.27,0.971]
[1744582654702,0.58726932,583.63,583.27,0.971]
[1744582654902,0.58726932,583.62,583.27,0.971]
[1744582655103,0.58726932,583.61,583.27,0.971]
[1744582655304,0.58726932,583.6,583.27,0.971]
[1744582655505,0.58726932,583.59,583.27,0.971]
[1744582655807,0.216,584.15,583.27,0.971]
[1744582656003,0.58692676,584.14,583.27,0.971]
[1744582656203,0.58692676,584.13,583.27,0.971]
[1744582656407,0.58692676,584.12,583.27,0.971]
[1744582656604,0.58692676,584.11,583.27,0.971]
[1744582656804,0.58692676,584.1,583.27,0.971]
[1744582657004,0.58692676,584.09,583.27,0.971]
[1744582657209,0.58692676,584.08,583.27,0.971]
[1744582657409,0.58692676,584.07,583.27,1.372]
[1744582657606,0.58692676,584.06,583.27,1.372]
[1744582657804,0.216,584.15,583.27,1.894]
[1744582657805,0.58692676,584.05,583.27,1.894]
[1744582658006,0.58692676,584.04,583.27,1.894]
[1744582658208,0.58692676,584.03,583.27,1.894]
[1744582658405,0.58692676,584.02,583.27,1.894]
[1744582658609,0.58692676,584.01,583.27,1.894]
[1744582658809,0.58692676,584.0,583.27,1.894]
[1744582659010,0.58692676,583.99,583.27,1.894]
[1744582659210,0.58692425,583.98,583.27,1.894]
[1744582659410,0.58692425,583.97,583.27,1.894]
[1744582659611,0.58692425,583.96,583.27,1.894]
[1744582659812,0.58692425,583.95,583.27,1.894]
[1744582660014,0.58692425,583.94,583.27,1.894]
[1744582660213,0.58692425,583.93,583.27,1.894]
[1744582660408,0.58692425,583.92,583.27,1.894]
[1744582660610,0.58692425,583.91,583.27,1.894]
[1744582660814,0.216,584.15,583.27,1.894]
[1744582661013,0.90092115,584.14,583.27,1.894]
[1744582661311,0.90092115,584.13,583.27,1.894]
[1744582661615,0.90092115,584.12,583.27,1.894]
[1744582661816,0.58697775,584.11,583.27,1.894]
[1744582662017,0.90092697,584.1,583.27,1.894]
[1744582662216,0.90092697,584.09,583.27,1.894]
[1744582662416,0.90092697,584.08,583.27,1.894]
[1744582662617,0.90090338,584.07,583.27,1.894]
[1744582662809,0.90090338,584.06,583.27,1.894]
[1744582663010,0.90090338,584.05,583.27,1.894]
[1744582663214,0.216,584.15,583.27,1.894]
[1744582663215,0.90090338,584.04,583.27,1.894]
[1744582663414,0.58695416,584.03,583.27,1.894]
[1744582663611,0.90095275,584.02,583.27,1.894]
[1744582663815,0.90095275,584.01,583.27,1.894]
[1744582664017,0.90095275,584.0,583.27,1.894]
[1744582664217,0.90095275,583.99,583.27,1.894]
[1744582664420,0.58695416,583.98,583.27,1.894]
[1744582664620,0.58695416,583.97,583.27,1.894]
[1744582664820,0.58695416,583.96,583.27,1.894]
[1744582665120,0.58683979,583.95,583.27,1.894]
[1744582665318,0.216,584.15,583.27,1.894]
[1744582665319,0.58683979,583.94,583.27,1.894]
[1744582665520,0.58683979,583.93,583.27,1.894]
[1744582665716,0.58683979,583.92,583.27,1.894]
[1744582665923,0.216,584.15,583.27,1.894]
[1744582665924,0.58683979,583.91,583.27,1.894]
[1744582666121,0.58683979,583.9,583.27,1.894]
[1744582666322,0.58675167,583.89,583.27,1.894]
[1744582666519,0.58675167,583.88,583.27,1.894]
[1744582666822,0.216,584.15,583.27,1.894]
[1744582666823,0.58675167,583.87,583.27,1.894]
[1744582667021,0.58675167,583.86,583.27,1.894]
[1744582667220,0.58675167,583.85,583.27,1.894]
[1744582667521,0.58675167,583.84,583.27,1.894]
[1744582667721,0.58675167,583.83,583.27,1.894]
[1744582667918,0.58675167,583.82,583.27,1.894]
[1744582668116,0.58675167,583.81,583.27,1.894]
[1744582668321,0.58675167,583.8,583.27,1.894]
[1744582668522,0.58675167,583.79,583.27,1.894]
[1744582668722,0.58675167,583.78,583.27,1.894]
[1744582668922,0.58675167,583.77,583.27,1.894]
[1744582669123,0.58675167,583.76,583.27,1.894]
[1744582669321,0.58675167,583.75,583.27,1.894]
[1744582669526,0.58675167,583.74,583.27,1.894]
[1744582669725,0.58675167,583.73,583.27,1.894]
[1744582669922,0.58675167,583.72,583.27,1.894]
[1744582670125,0.58675167,583.71,583.27,1.894]
[1744582670323,0.58675167,583.7,583.27,1.894]
[1744582670627,0.58675167,583.69,583.27,1.894]
[1744582670830,0.58675167,583.68,583.27,1.894]
[1744582671029,0.58675167,583.67,583.27,1.894]
[1744582671222,0.58675167,583.66,583.27,1.894]
[1744582671426,0.58675167,583.65,583.27,1.894]
[1744582671729,0.58675167,583.64,583.27,0.401]
[1744582671926,0.58675167,583.63,583.27,0.401]
[1744582672131,0.58675167,583.62,583.27,0.401]
[1744582672330,0.58675167,583.61,583.27,0.401]
[1744582672530,0.58675167,583.6,583.27,0.401]
[1744582672732,0.58675167,583.59,583.27,0.401]
[1744582672933,0.58675167,583.58,583.27,0.401]
[1744582673135,0.58675167,583.57,583.27,0.401]
[1744582673333,0.58627262,583.56,583.27,0.401]
[1744582673531,0.58627262,583.55,583.27,0.401]
[1744582673731,0.58627262,583.54,583.27,0.401]
[1744582673934,0.58627262,583.53,583.27,0.401]
[1744582674134,0.58627262,583.52,583.27,0.401]
[1744582674331,0.58627262,583.51,583.27,0.401]
[1744582674530,0.58627262,583.5,583.27,0.401]
[1744582674731,0.58627262,583.49,583.27,0.401]
[1744582675036,0.216,583.7,583.27,0.401]
[1744582675037,0.58627262,583.48,583.27,0.401]
[1744582675231,0.216,583.7,583.27,0.401]
[1744582675232,0.58627262,583.47,583.27,0.401]
[1744582675435,0.58627262,583.46,583.24,0.404]
[1744582675737,0.58627262,583.45,583.24,0.404]
[1744582675939,0.58627262,583.44,583.24,0.404]
[1744582676133,0.58627262,583.43,583.24,0.404]
[1744582676332,0.216,583.7,583.24,0.404]
[1744582676537,0.58596755,583.69,583.24,0.404]
[1744582676832,0.58596755,583.68,583.12,0.442]
[1744582677036,0.58596755,583.67,583.12,0.442]
[1744582677336,0.58596755,583.66,583.12,0.442]
[1744582677533,0.58596755,583.65,583.12,0.442]
[1744582677738,0.58596755,583.64,583.12,0.442]
[1744582677941,0.58596755,583.63,583.12,0.442]
[1744582678138,0.58596755,583.62,583.12,0.442]
[1744582678438,0.58596755,583.61,583.13,0.486]
[1744582678638,0.58596755,583.6,583.13,0.486]
[1744582678837,0.58596755,583.59,583.13,0.486]
[1744582679137,0.58596755,583.58,583.13,0.486]
[1744582679337,0.58596755,583.57,583.13,0.486]
[1744582679538,0.58596755,583.56,583.13,0.486]
[1744582679738,0.58596755,583.55,583.13,0.486]
[1744582679939,0.58596755,583.54,583.13,0.486]
[1744582680139,0.58596755,583.53,583.14,0.485]
[1744582680334,0.58596755,583.52,583.14,0.485]
[1744582680535,0.58596755,583.51,583.14,0.485]
[1744582680739,0.58596755,583.5,583.14,0.485]
[1744582680939,0.58596755,583.49,583.14,0.485]
[1744582681143,0.58596755,583.48,583.14,0.485]
[1744582681343,0.58596755,583.47,583.14,0.485]
[1744582681544,0.58582484,583.46,583.14,0.485]
[1744582681744,0.58582484,583.45,583.14,0.485]
[1744582681939,0.58582484,583.44,583.14,0.485]
[1744582682142,0.58582484,583.43,583.14,0.485]
[1744582682344,0.58582484,583.42,583.14,0.485]
[1744582682547,0.58582484,583.41,583.14,0.485]
[1744582682741,0.58582484,583.4,583.14,0.485]
[1744582682944,0.58582484,583.39,583.14,0.485]
[1744582683145,0.58582484,583.38,583.14,0.485]
[1744582683443,0.58582484,583.37,583.14,0.485]
[1744582683641,0.58582484,583.36,583.14,0.485]
[1744582683841,0.58582484,583.35,583.14,0.485]
[1744582684042,0.58582484,583.34,583.14,0.485]
[1744582684250,0.58582484,583.33,583.14,0.485]
[1744582684548,0.58582484,583.32,583.14,0.485]
[1744582684845,0.58582484,583.31,583.14,0.485]
[1744582685045,0.58524454,583.3,583.14,0.485]
[1744582685241,0.58524454,583.29,583.14,0.485]
[1744582685546,0.5850201,583.28,583.14,0.485]
[1744582685745,0.5850201,583.27,583.14,0.485]
[1744582685942,0.5850201,583.26,583.14,0.485]
[1744582686144,0.216,583.7,583.14,0.485]
[1744582686346,0.58505049,583.69,583.14,0.485]
[1744582686539,0.216,583.7,583.14,0.485]
[1744582686540,0.58487695,583.68,583.14,0.485]
[1744582686742,0.58488147,583.67,583.14,0.485]
[1744582686943,0.58488147,583.66,583.14,0.485]
[1744582687143,0.58488147,583.65,583.14,0.485]
[1744582687346,0.58488147,583.64,583.14,0.485]
[1744582687646,0.58488147,583.63,583.14,0.485]
[1744582687847,0.89884254,583.62,583.14,0.485]
[1744582688047,0.89884254,583.61,583.14,0.485]
[1744582688244,0.89884254,583.6,583.14,0.485]
[1744582688446,0.58488147,583.59,583.14,0.485]
[1744582688650,0.58488147,583.58,583.14,0.485]
[1744582688849,0.58488147,583.57,583.14,0.485]
[1744582689043,0.58488147,583.56,583.14,0.485]
[1744582689247,0.58488147,583.55,583.14,0.485]
[1744582689542,0.58488147,583.54,583.15,0.445]
[1744582689747,0.58488147,583.53,583.15,0.445]
[1744582689948,0.58488147,583.52,583.15,0.445]
[1744582690151,0.58488147,583.51,583.15,0.445]
[1744582690345,0.58488147,583.5,583.15,0.445]
[1744582690545,0.8988204,583.49,583.15,0.445]
[1744582690744,0.8988204,583.48,583.15,0.445]
[1744582691048,0.8988204,583.47,583.15,0.445]
[1744582691247,0.8988204,583.46,583.15,0.445]
[1744582691450,0.58488147,583.45,583.15,0.445]
[1744582691749,0.58488147,583.44,583.15,0.445]
[1744582691951,0.58488147,583.43,583.15,0.445]
[1744582692246,0.58488147,583.42,583.15,0.445]
[1744582692447,0.58488147,583.41,583.15,0.445]
[1744582692647,0.58488147,583.4,583.15,0.445]
[1744582692851,0.58488147,583.39,583.15,0.445]
[1744582693052,0.58488147,583.38,583.15,0.445]
[1744582693250,0.58488147,583.37,583.15,0.445]
[1744582693447,0.58488147,583.36,583.15,0.445]
[1744582693647,0.58488147,583.35,583.15,0.445]
[1744582693849,0.58488147,583.34,583.15,0.445]
[1744582694053,0.58488147,583.33,583.15,0.445]
[1744582694253,0.58488147,583.32,583.15,0.445]
[1744582694450,0.58488147,583.31,583.15,0.445]
[1744582694654,0.58488147,583.3,583.15,0.445]
[1744582694849,0.58488147,583.29,583.15,0.445]
[1744582695048,0.58488147,583.28,583.15,0.445]
[1744582695355,0.58488147,583.27,583.15,0.445]
[1744582695554,0.58488147,583.26,583.15,0.445]
[1744582695755,0.58488147,583.25,583.15,0.445]
[1744582695954,0.58488147,583.24,583.15,0.445]
[1744582696254,0.58488147,583.23,583.15,0.445]
[1744582696454,0.58488147,583.22,583.15,0.445]
[1744582696655,0.58488147,583.21,583.15,0.445]
[1744582696852,0.58488147,583.2,583.15,0.445]
[1744582697055,0.34230749,584.27,583.15,0.445]
[1744582697255,0.89637837,584.26,583.15,0.445]
[1744582697454,0.89637837,584.25,583.15,0.445]
[1744582697654,0.89639181,584.24,583.15,1.201]
[1744582697856,0.89639181,584.23,583.15,1.201]
[1744582698151,0.34234851,584.2,583.15,1.201]
[1744582698356,0.89639181,584.19,583.15,1.201]
[1744582698553,0.89639181,584.18,583.15,1.201]
[1744582698757,0.89639181,584.17,583.15,1.201]
[1744582698959,0.89639182,584.16,583.15,1.201]
[1744582699159,0.89639182,584.15,583.15,1.201]
[1744582699360,0.89639182,584.14,583.15,1.201]
[1744582699557,0.89639182,584.13,583.15,1.201]
[1744582699757,0.89639182,584.12,583.15,1.201]
[1744582699962,0.89639182,584.11,583.15,1.201]
[1744582700262,0.89639182,584.1,583.15,1.201]
[1744582700562,0.89639182,584.09,583.15,1.201]
[1744582700760,0.3424247,584.07,583.15,1.201]
[1744582700963,0.89645913,584.06,583.15,1.201]
[1744582701265,0.89645913,584.05,583.15,1.201]
[1744582701465,0.89645913,584.04,583.15,1.201]
[1744582701760,1.23890729,584.03,583.15,1.201]
[1744582701965,0.34245988,584.01,583.15,1.201]
[1744582702166,0.89645913,584.0,583.15,1.201]
[1744582702374,0.34247748,583.98,583.15,1.201]
[1744582702565,0.89665057,583.97,583.15,1.201]
[1744582702766,0.89665057,583.96,583.15,1.201]
[1744582703066,0.34250094,583.94,583.15,1.201]
[1744582703267,0.89665057,583.93,583.15,1.201]
[1744582703463,1.23916324,583.92,583.15,1.201]
[1744582703667,1.2391691,583.91,583.15,1.201]
[1744582703868,1.23917497,583.9,583.15,1.201]
[1744582704070,1.23918084,583.89,583.15,1.201]
[1744582704269,1.2391867,583.88,583.15,1.201]
[1744582704564,1.23919257,583.87,583.15,1.201]
[1744582704770,0.89665057,583.86,583.15,1.201]
[1744582705065,1.2392043,583.85,583.15,1.201]
[1744582705268,1.23921017,583.84,583.15,1.201]
[1744582705468,0.89665057,583.83,583.15,1.201]
[1744582705770,1.23922191,583.82,583.15,1.733]
[1744582705971,0.92508918,583.81,583.15,1.733]
[1744582706171,1.23935233,583.8,583.15,1.733]
[1744582706471,1.23910003,583.79,583.15,1.733]
[1744582706770,1.2391059,583.78,583.15,1.733]
[1744582706972,1.23911177,583.77,583.15,1.733]
[1744582707173,1.23911764,583.76,583.15,1.733]
[1744582707470,1.2391235,583.75,583.15,1.733]
[1744582707771,1.23912937,583.74,583.15,1.733]
[1744582707971,1.23913524,583.73,583.15,1.733]
[1744582708167,0.89651109,583.72,583.15,1.733]
[1744582708367,0.89651109,583.71,583.15,1.733]
[1744582708569,0.89651109,583.7,583.15,1.733]
[1744582708768,0.89651109,583.69,583.15,1.733]
[1744582708967,0.89651109,583.68,583.15,1.733]
[1744582709173,0.89651109,583.67,583.15,1.733]
[1744582709474,0.89651109,583.66,583.15,1.733]
[1744582709674,0.34262415,583.73,583.15,1.733]
[1744582709675,0.89651109,583.65,583.15,1.733]
[1744582709874,0.89651109,583.64,583.15,1.733]
[1744582710075,0.89651109,583.63,583.15,1.733]
[1744582710374,0.89651109,583.62,583.15,1.733]